[Event "*** MasterClass Titled Tuesday Blitz"]
[Site "Chess.com"]
[Date "2017.09.05"]
[Round "9"]
[White "VladDobrov"]
[Black "Scott-fox21"]
[Result "1-0"]
[WhiteElo "2599"]
[BlackElo "2187"]
[TimeControl "180+2"]
[EndTime "15:07:34 PDT"]
[Termination "VladDobrov won by resignation"]

1. e4 {[%clk 0:03:01.9]} 1... c5 {[%clk 0:03:00.5]} 2. Nf3 {[%clk 0:03:02.5]}
2... d6 {[%clk 0:03:01.4]} 3. d4 {[%clk 0:03:03.8]} 3... cxd4 {[%clk 0:03:02.7]}
4. Nxd4 {[%clk 0:03:05.7]} 4... Nf6 {[%clk 0:03:04.1]} 5. Nc3 {[%clk 0:03:07.3]}
5... Nc6 {[%clk 0:03:05.6]} 6. Bg5 {[%clk 0:03:07.9]} 6... e6 {[%clk 0:03:03.6]}
7. Qd2 {[%clk 0:03:08.9]} 7... a6 {[%clk 0:03:01.9]} 8. O-O-O {[%clk 0:03:09.8]}
8... Bd7 {[%clk 0:03:01]} 9. f3 {[%clk 0:03:03.3]} 9... h6 {[%clk 0:02:51.5]}
10. Be3 {[%clk 0:03:03.6]} 10... b5 {[%clk 0:02:50.7]} 11. Nxc6 {[%clk
0:03:04.2]} 11... Bxc6 {[%clk 0:02:50.5]} 12. Ne2 {[%clk 0:03:06.1]} 12... Be7
{[%clk 0:02:46.9]} 13. Nd4 {[%clk 0:03:07]} 13... Bb7 {[%clk 0:02:48.1]} 14. Kb1
{[%clk 0:03:06.2]} 14... O-O {[%clk 0:02:46.6]} 15. g4 {[%clk 0:03:04.2]} 15...
Nd7 {[%clk 0:02:43.3]} 16. h4 {[%clk 0:03:04.2]} 16... d5 {[%clk 0:02:39.8]} 17.
g5 {[%clk 0:03:04.1]} 17... h5 {[%clk 0:02:34.3]} 18. g6 {[%clk 0:03:01.8]}
18... fxg6 {[%clk 0:02:30.3]} 19. Nxe6 {[%clk 0:03:02.5]} 19... Qc8 {[%clk
0:02:13.5]} 20. Nxf8 {[%clk 0:03:01]} 20... Qxf8 {[%clk 0:02:15]} 21. exd5
{[%clk 0:03:01.1]} 21... Qxf3 {[%clk 0:02:14.6]} 22. Bh3 {[%clk 0:02:58.8]}
22... Ne5 {[%clk 0:02:00.3]} 23. d6 {[%clk 0:02:57.7]} 23... Nc4 {[%clk
0:01:53.5]} 24. Be6+ {[%clk 0:02:57.4]} 24... Kh7 {[%clk 0:01:49.6]} 25. Bxc4
{[%clk 0:02:58.4]} 25... Bxd6 {[%clk 0:01:25.2]} 26. Qxd6 {[%clk 0:02:55.9]}
26... Qxe3 {[%clk 0:01:25.9]} 27. Bd5 {[%clk 0:02:56.2]} 27... Bxd5 {[%clk
0:01:22.5]} 28. Qxd5 {[%clk 0:02:58.1]} 28... Rc8 {[%clk 0:01:22.6]} 29. Qd3
{[%clk 0:02:58.1]} 29... Qf2 {[%clk 0:01:21.2]} 1-0

[Event "*** MasterClass Titled Tuesday Blitz"]
[Site "Chess.com"]
[Date "2017.09.05"]
[Round "9"]
[White "dhanushbharadwaj"]
[Black "AdrianaNikolova"]
[Result "0-1"]
[WhiteElo "2383"]
[BlackElo "2261"]
[TimeControl "180+2"]
[EndTime "15:08:34 PDT"]
[Termination "AdrianaNikolova won by resignation"]

1. Nf3 {[%clk 0:03:01.9]} 1... d5 {[%clk 0:02:59.7]} 2. c4 {[%clk 0:03:02.6]}
2... d4 {[%clk 0:02:59.6]} 3. g3 {[%clk 0:03:02.4]} 3... c5 {[%clk 0:03:00.9]}
4. b4 {[%clk 0:03:03.1]} 4... Nc6 {[%clk 0:03:02.8]} 5. b5 {[%clk 0:03:03.2]}
5... Nb8 {[%clk 0:03:04.1]} 6. Bg2 {[%clk 0:03:03.9]} 6... g6 {[%clk 0:03:05.5]}
7. d3 {[%clk 0:03:05.3]} 7... Bg7 {[%clk 0:03:06.9]} 8. O-O {[%clk 0:03:06.8]}
8... e5 {[%clk 0:03:08.2]} 9. a4 {[%clk 0:03:06.6]} 9... Ne7 {[%clk 0:03:07.2]}
10. a5 {[%clk 0:03:07.5]} 10... O-O {[%clk 0:03:08.2]} 11. a6 {[%clk 0:03:07]}
11... Qc7 {[%clk 0:03:03.2]} 12. Bd2 {[%clk 0:02:54.1]} 12... Nd7 {[%clk
0:02:54.3]} 13. Ba5 {[%clk 0:02:47.1]} 13... Nb6 {[%clk 0:02:55.1]} 14. axb7
{[%clk 0:02:38.7]} 14... Bxb7 {[%clk 0:02:29.7]} 15. Nbd2 {[%clk 0:02:40.6]}
15... f5 {[%clk 0:02:26.6]} 16. Ng5 {[%clk 0:02:37.5]} 16... Bxg2 {[%clk
0:02:24.4]} 17. Kxg2 {[%clk 0:02:39]} 17... Qb7+ {[%clk 0:02:21.8]} 18. Kg1
{[%clk 0:02:36.4]} 18... Qd7 {[%clk 0:02:22.6]} 19. Nb3 {[%clk 0:02:32.5]} 19...
Rac8 {[%clk 0:02:14]} 20. Bxb6 {[%clk 0:02:28.6]} 20... axb6 {[%clk 0:02:07.5]}
21. Ra6 {[%clk 0:02:30.2]} 21... h6 {[%clk 0:01:58]} 22. Nf3 {[%clk 0:02:27.3]}
22... e4 {[%clk 0:01:58.8]} 23. Ne1 {[%clk 0:02:23.9]} 23... Qe6 {[%clk
0:01:57.5]} 24. Ng2 {[%clk 0:02:18.4]} 24... g5 {[%clk 0:01:56.3]} 25. Qd2
{[%clk 0:02:11.3]} 25... Ng6 {[%clk 0:01:56.6]} 26. Na5 {[%clk 0:02:01.8]} 26...
Ne5 {[%clk 0:01:53]} 27. Nc6 {[%clk 0:01:56.4]} 27... Nxc6 {[%clk 0:01:53.4]}
28. Rxb6 {[%clk 0:01:56.8]} 28... exd3 {[%clk 0:01:53.9]} 29. exd3 {[%clk
0:01:55.2]} 29... Rfe8 {[%clk 0:01:45.7]} 30. bxc6 {[%clk 0:01:53.3]} 30... Rxc6
{[%clk 0:01:47.6]} 31. Rxc6 {[%clk 0:01:51.4]} 31... Qxc6 {[%clk 0:01:49.5]} 32.
Re1 {[%clk 0:01:53.3]} 32... Kf7 {[%clk 0:01:48.2]} 33. Rxe8 {[%clk 0:01:52.1]}
33... Qxe8 {[%clk 0:01:50.1]} 34. Qe2 {[%clk 0:01:53.9]} 34... Qxe2 {[%clk
0:01:49.3]} 0-1

[Event "*** MasterClass Titled Tuesday Blitz"]
[Site "Chess.com"]
[Date "2017.09.05"]
[Round "9"]
[White "pawnwonder"]
[Black "RitvarsReimanis"]
[Result "0-1"]
[WhiteElo "1996"]
[BlackElo "2449"]
[TimeControl "180+2"]
[EndTime "15:09:27 PDT"]
[Termination "RitvarsReimanis won by checkmate"]

1. e4 {[%clk 0:03:01.9]} 1... c5 {[%clk 0:02:59.2]} 2. Nf3 {[%clk 0:03:00.8]}
2... Nc6 {[%clk 0:03:00.6]} 3. Bb5 {[%clk 0:03:00.7]} 3... g6 {[%clk 0:03:01.7]}
4. Bxc6 {[%clk 0:03:01.6]} 4... bxc6 {[%clk 0:03:03.6]} 5. O-O {[%clk
0:03:02.1]} 5... Bg7 {[%clk 0:03:05.1]} 6. Re1 {[%clk 0:03:03.4]} 6... Nh6
{[%clk 0:03:06.3]} 7. c3 {[%clk 0:03:04.2]} 7... d6 {[%clk 0:03:07.6]} 8. d4
{[%clk 0:03:05.3]} 8... cxd4 {[%clk 0:03:09.5]} 9. cxd4 {[%clk 0:03:07.2]} 9...
f6 {[%clk 0:03:10.6]} 10. Nc3 {[%clk 0:03:07.9]} 10... Nf7 {[%clk 0:03:11.1]}
11. h3 {[%clk 0:03:04.5]} 11... O-O {[%clk 0:03:11.8]} 12. Be3 {[%clk
0:03:05.9]} 12... Bd7 {[%clk 0:03:12.5]} 13. Qd2 {[%clk 0:03:07]} 13... Rb8
{[%clk 0:03:11.8]} 14. Rab1 {[%clk 0:03:00.7]} 14... Qa5 {[%clk 0:03:12]} 15. d5
{[%clk 0:02:51.3]} 15... c5 {[%clk 0:03:10.4]} 16. a3 {[%clk 0:02:47.1]} 16...
Rb3 {[%clk 0:03:00.9]} 17. Qc2 {[%clk 0:02:43.3]} 17... Rfb8 {[%clk 0:03:02.4]}
18. Nd2 {[%clk 0:02:41.5]} 18... R3b7 {[%clk 0:03:03]} 19. Nc4 {[%clk
0:02:40.6]} 19... Qd8 {[%clk 0:03:03.2]} 20. Bd2 {[%clk 0:02:13.2]} 20... f5
{[%clk 0:02:54.8]} 21. f3 {[%clk 0:01:23.7]} 21... fxe4 {[%clk 0:02:53.9]} 22.
fxe4 {[%clk 0:01:24.6]} 22... Ne5 {[%clk 0:02:55.1]} 23. Nxe5 {[%clk 0:01:19.8]}
23... Bxe5 {[%clk 0:02:57]} 24. Be3 {[%clk 0:00:58.3]} 24... Qc8 {[%clk
0:02:54]} 25. Qd2 {[%clk 0:00:52.9]} 25... Bxh3 {[%clk 0:02:52.2]} 26. gxh3
{[%clk 0:00:52.3]} 26... Qxh3 {[%clk 0:02:54.1]} 27. Qg2 {[%clk 0:00:53.6]}
27... Qh4 {[%clk 0:02:48.2]} 28. Bg5 {[%clk 0:00:50.1]} 28... Qh5 {[%clk
0:02:40.8]} 29. Bd2 {[%clk 0:00:49.2]} 29... Bd4+ {[%clk 0:02:37.3]} 30. Be3
{[%clk 0:00:35.3]} 30... Bxc3 {[%clk 0:02:35.9]} 31. Rf1 {[%clk 0:00:36.1]}
31... Rxb2 {[%clk 0:02:32]} 32. Rxb2 {[%clk 0:00:36.1]} 32... Rxb2 {[%clk
0:02:33.9]} 33. Rf2 {[%clk 0:00:22]} 33... Qd1+ {[%clk 0:02:22.1]} 34. Kh2
{[%clk 0:00:22.3]} 34... Be5+ {[%clk 0:02:23.4]} 35. Kh3 {[%clk 0:00:21.1]}
35... Qh5# {[%clk 0:02:21]} 0-1

[Event "*** MasterClass Titled Tuesday Blitz"]
[Site "Chess.com"]
[Date "2017.09.05"]
[Round "9"]
[White "NTBT_DHS"]
[Black "AndrewMcStone"]
[Result "1-0"]
[WhiteElo "2494"]
[BlackElo "2047"]
[TimeControl "180+2"]
[EndTime "15:09:50 PDT"]
[Termination "NTBT_DHS won on time"]

1. g3 {[%clk 0:02:56.4]} 1... f5 {[%clk 0:02:57.2]} 2. Bg2 {[%clk 0:02:58.3]}
2... Nf6 {[%clk 0:02:57.1]} 3. Nc3 {[%clk 0:02:59]} 3... e6 {[%clk 0:02:54.8]}
4. h4 {[%clk 0:02:57.5]} 4... Be7 {[%clk 0:02:46.7]} 5. h5 {[%clk 0:02:56.4]}
5... Nc6 {[%clk 0:02:37.8]} 6. d4 {[%clk 0:02:56.7]} 6... d6 {[%clk 0:02:24.1]}
7. e4 {[%clk 0:02:54.7]} 7... fxe4 {[%clk 0:02:20.4]} 8. Nxe4 {[%clk 0:02:56.6]}
8... d5 {[%clk 0:02:19.9]} 9. Ng5 {[%clk 0:02:56]} 9... h6 {[%clk 0:01:31.7]}
10. N5f3 {[%clk 0:02:50.8]} 10... O-O {[%clk 0:01:26.3]} 11. Nh4 {[%clk
0:02:50.2]} 11... Ne4 {[%clk 0:01:21.2]} 12. Bxe4 {[%clk 0:02:41.4]} 12... dxe4
{[%clk 0:01:21.5]} 13. Be3 {[%clk 0:02:42.3]} 13... Bg5 {[%clk 0:01:15.5]} 14.
Ng6 {[%clk 0:02:40.5]} 14... Rf7 {[%clk 0:01:04.7]} 15. Nh3 {[%clk 0:02:38.8]}
15... Bxe3 {[%clk 0:01:03.7]} 16. fxe3 {[%clk 0:02:40.7]} 16... e5 {[%clk
0:00:57.7]} 17. dxe5 {[%clk 0:02:39]} 17... Bxh3 {[%clk 0:00:51.8]} 18. Qxd8+
{[%clk 0:02:36.9]} 18... Rxd8 {[%clk 0:00:52.5]} 19. Rxh3 {[%clk 0:02:38.8]}
19... Rf3 {[%clk 0:00:35.2]} 20. Ke2 {[%clk 0:02:36.3]} 20... Re8 {[%clk
0:00:13.6]} 21. Rh4 {[%clk 0:02:34.8]} 21... Rxg3 {[%clk 0:00:11.4]} 22. Rf1
{[%clk 0:02:34.7]} 22... Nxe5 {[%clk 0:00:10.2]} 23. Rxe4 {[%clk 0:02:32.7]}
23... Rg5 {[%clk 0:00:09.4]} 24. Nf4 {[%clk 0:02:08.1]} 24... Rf8 {[%clk
0:00:05.2]} 25. Rd1 {[%clk 0:02:07.4]} 25... Nc6 {[%clk 0:00:03.9]} 26. Rd7
{[%clk 0:02:07.9]} 26... Rg3 {[%clk 0:00:03]} 27. b4 {[%clk 0:02:07.2]} 27...
Rc8 {[%clk 0:00:02.2]} 28. b5 {[%clk 0:02:08]} 28... Na5 {[%clk 0:00:03.1]} 29.
Ree7 {[%clk 0:02:08.6]} 29... b6 {[%clk 0:00:02.2]} 30. Ng6 {[%clk 0:02:09.5]}
30... Rg2+ {[%clk 0:00:02.5]} 31. Kf3 {[%clk 0:02:09.7]} 31... Rxg6 {[%clk
0:00:02.7]} 32. hxg6 {[%clk 0:02:10.5]} 32... Rf8+ {[%clk 0:00:02.9]} 33. Ke2
{[%clk 0:02:11.9]} 33... Rf6 {[%clk 0:00:04.4]} 34. Rxg7+ {[%clk 0:02:11.9]} 1-0

[Event "*** MasterClass Titled Tuesday Blitz"]
[Site "Chess.com"]
[Date "2017.09.05"]
[Round "9"]
[White "Alex_Molchanov"]
[Black "Grebeniuk-S"]
[Result "0-1"]
[WhiteElo "2490"]
[BlackElo "2425"]
[TimeControl "180+2"]
[EndTime "15:09:54 PDT"]
[Termination "Grebeniuk-S won by resignation"]

1. c4 {[%clk 0:03:01.9]} 1... f5 {[%clk 0:03:00.2]} 2. g3 {[%clk 0:03:02.4]}
2... Nf6 {[%clk 0:03:01.5]} 3. Bg2 {[%clk 0:03:04]} 3... g6 {[%clk 0:03:03.4]}
4. Nc3 {[%clk 0:03:05.2]} 4... Bg7 {[%clk 0:03:04.8]} 5. d3 {[%clk 0:03:03.5]}
5... d6 {[%clk 0:03:05.7]} 6. e4 {[%clk 0:03:04.9]} 6... fxe4 {[%clk 0:02:57.3]}
7. dxe4 {[%clk 0:03:05.3]} 7... Nc6 {[%clk 0:02:56.8]} 8. Nge2 {[%clk 0:03:06]}
8... O-O {[%clk 0:02:58]} 9. O-O {[%clk 0:03:05.6]} 9... Be6 {[%clk 0:02:33.2]}
10. Nd5 {[%clk 0:03:02.6]} 10... Bd7 {[%clk 0:02:12.7]} 11. Rb1 {[%clk
0:03:01.1]} 11... e6 {[%clk 0:02:13.3]} 12. Ne3 {[%clk 0:03:01.8]} 12... a5
{[%clk 0:01:58.4]} 13. b3 {[%clk 0:03:00.5]} 13... Qe7 {[%clk 0:01:58]} 14. Bb2
{[%clk 0:02:55]} 14... a4 {[%clk 0:01:58.1]} 15. b4 {[%clk 0:02:56.1]} 15... a3
{[%clk 0:01:48]} 16. Bc3 {[%clk 0:02:55.8]} 16... Ne5 {[%clk 0:01:30.5]} 17.
Bxe5 {[%clk 0:02:27.4]} 17... dxe5 {[%clk 0:01:31.4]} 18. c5 {[%clk 0:02:28.5]}
18... Ba4 {[%clk 0:01:21]} 19. Qc1 {[%clk 0:02:20.2]} 19... Bb5 {[%clk
0:01:18.9]} 20. Re1 {[%clk 0:02:21]} 20... Bd3 {[%clk 0:01:18.9]} 21. Rb3 {[%clk
0:02:19.7]} 21... Bxe4 {[%clk 0:01:16.5]} 22. Nc4 {[%clk 0:02:14.1]} 22... Bd5
{[%clk 0:01:04.7]} 23. Rxa3 {[%clk 0:02:11.9]} 23... Rxa3 {[%clk 0:01:01.4]} 24.
Nxa3 {[%clk 0:02:13.8]} 24... Bxa2 {[%clk 0:00:45.7]} 25. Nc3 {[%clk 0:02:13.9]}
25... Bd5 {[%clk 0:00:38.8]} 26. Rxe5 {[%clk 0:02:07.4]} 26... Bxg2 {[%clk
0:00:39.7]} 27. Kxg2 {[%clk 0:02:08.8]} 27... Ng4 {[%clk 0:00:34.4]} 28. Re2
{[%clk 0:02:10.2]} 28... Qf6 {[%clk 0:00:28]} 29. Nab1 {[%clk 0:02:00.4]} 29...
Qf3+ {[%clk 0:00:26.6]} 30. Kg1 {[%clk 0:01:49.7]} 30... Nxf2 {[%clk 0:00:27.1]}
31. Qf1 {[%clk 0:01:42.3]} 31... Bd4 {[%clk 0:00:19.9]} 0-1

[Event "*** MasterClass Titled Tuesday Blitz"]
[Site "Chess.com"]
[Date "2017.09.05"]
[Round "9"]
[White "johnathan113"]
[Black "Adham_Fawzy"]
[Result "1-0"]
[WhiteElo "2539"]
[BlackElo "2397"]
[TimeControl "180+2"]
[EndTime "15:10:03 PDT"]
[Termination "johnathan113 won on time"]

1. e4 {[%clk 0:03:01.9]} 1... c5 {[%clk 0:02:57.9]} 2. Nf3 {[%clk 0:03:02.8]}
2... Nc6 {[%clk 0:02:56.3]} 3. Nc3 {[%clk 0:03:03.6]} 3... d6 {[%clk 0:02:52.6]}
4. d4 {[%clk 0:03:04.1]} 4... cxd4 {[%clk 0:02:52.5]} 5. Nxd4 {[%clk 0:03:06]}
5... e5 {[%clk 0:02:52.8]} 6. Nb3 {[%clk 0:02:48.9]} 6... Be6 {[%clk 0:02:52.4]}
7. Be2 {[%clk 0:02:38.6]} 7... Nf6 {[%clk 0:02:45.6]} 8. Bg5 {[%clk 0:02:38.1]}
8... Be7 {[%clk 0:02:45.5]} 9. Qd3 {[%clk 0:02:35]} 9... O-O {[%clk 0:02:21.3]}
10. O-O-O {[%clk 0:02:21.6]} 10... Qb6 {[%clk 0:02:11.4]} 11. Be3 {[%clk
0:02:17.9]} 11... Qc7 {[%clk 0:01:59.8]} 12. Nb5 {[%clk 0:02:16.8]} 12... Qd7
{[%clk 0:02:00.2]} 13. Nxd6 {[%clk 0:01:59.9]} 13... Nb4 {[%clk 0:01:36.8]} 14.
Qd2 {[%clk 0:01:59.4]} 14... Bxd6 {[%clk 0:01:10.7]} 15. Qxd6 {[%clk 0:01:57.3]}
15... Qa4 {[%clk 0:01:08]} 16. a3 {[%clk 0:01:37.4]} 16... Na2+ {[%clk
0:00:30.5]} 17. Kb1 {[%clk 0:01:35]} 17... Nxe4 {[%clk 0:00:19.2]} 18. Qxe5
{[%clk 0:01:14.1]} 18... Bxb3 {[%clk 0:00:08.1]} 19. cxb3 {[%clk 0:01:08]} 19...
Qxb3 {[%clk 0:00:03]} 20. Rd3 {[%clk 0:00:59.3]} 1-0

[Event "*** MasterClass Titled Tuesday Blitz"]
[Site "Chess.com"]
[Date "2017.09.05"]
[Round "9"]
[White "jlandaw"]
[Black "champ2005"]
[Result "0-1"]
[WhiteElo "2395"]
[BlackElo "2490"]
[TimeControl "180+2"]
[EndTime "15:10:12 PDT"]
[Termination "champ2005 won by resignation"]

1. e4 {[%clk 0:03:01.9]} 1... c6 {[%clk 0:03:00.6]} 2. Nf3 {[%clk 0:02:59.5]}
2... d5 {[%clk 0:03:01]} 3. Nc3 {[%clk 0:03:01]} 3... Nf6 {[%clk 0:03:02.1]} 4.
e5 {[%clk 0:02:58.9]} 4... Ne4 {[%clk 0:03:03]} 5. Ne2 {[%clk 0:02:52.4]} 5...
Qb6 {[%clk 0:03:03.5]} 6. d4 {[%clk 0:02:49.9]} 6... e6 {[%clk 0:02:55.9]} 7.
Ng3 {[%clk 0:02:45.2]} 7... c5 {[%clk 0:02:55.9]} 8. c3 {[%clk 0:02:15.7]} 8...
Nc6 {[%clk 0:02:55.8]} 9. Nxe4 {[%clk 0:02:06.8]} 9... dxe4 {[%clk 0:02:56.7]}
10. Ng5 {[%clk 0:02:08.3]} 10... cxd4 {[%clk 0:02:54.9]} 11. Nxe4 {[%clk
0:02:08.6]} 11... Nxe5 {[%clk 0:02:44.8]} 12. Qxd4 {[%clk 0:02:08.2]} 12... Qxd4
{[%clk 0:02:44.6]} 13. cxd4 {[%clk 0:02:10.1]} 13... Nc6 {[%clk 0:02:45.7]} 14.
Be3 {[%clk 0:02:06.7]} 14... Nb4 {[%clk 0:02:46.7]} 15. Bb5+ {[%clk 0:01:56.7]}
15... Bd7 {[%clk 0:02:45.8]} 16. Bxd7+ {[%clk 0:01:56.8]} 16... Kxd7 {[%clk
0:02:47.7]} 17. O-O {[%clk 0:01:57.9]} 17... b6 {[%clk 0:02:37.3]} 18. Nc3
{[%clk 0:01:26.7]} 18... Be7 {[%clk 0:02:18.7]} 19. f4 {[%clk 0:01:22.3]} 19...
g6 {[%clk 0:02:15.4]} 20. Rae1 {[%clk 0:01:11]} 20... Bf6 {[%clk 0:02:11]} 21.
Re2 {[%clk 0:01:06.8]} 21... Rhe8 {[%clk 0:01:59.2]} 22. Ne4 {[%clk 0:00:38.3]}
22... Nd5 {[%clk 0:01:55.8]} 23. Nxf6+ {[%clk 0:00:37.7]} 23... Nxf6 {[%clk
0:01:56.6]} 24. Rc2 {[%clk 0:00:37.5]} 24... Rac8 {[%clk 0:01:56.2]} 25. Rfc1
{[%clk 0:00:38.3]} 25... Rxc2 {[%clk 0:01:55]} 26. Rxc2 {[%clk 0:00:40.3]} 26...
Rc8 {[%clk 0:01:53.3]} 27. Rxc8 {[%clk 0:00:41.5]} 27... Kxc8 {[%clk 0:01:55.2]}
28. Kf2 {[%clk 0:00:42]} 28... Kd7 {[%clk 0:01:55.9]} 29. Kf3 {[%clk 0:00:43]}
29... Kc6 {[%clk 0:01:56.3]} 30. Bf2 {[%clk 0:00:40.5]} 30... Kd5 {[%clk
0:01:57]} 31. Bh4 {[%clk 0:00:41.7]} 31... Nd7 {[%clk 0:01:57]} 32. Kg4 {[%clk
0:00:42.4]} 32... h6 {[%clk 0:01:49.5]} 33. Bf2 {[%clk 0:00:40.3]} 33... Ke4
{[%clk 0:01:50.5]} 34. h4 {[%clk 0:00:33.9]} 34... f5+ {[%clk 0:01:49.4]} 35.
Kg3 {[%clk 0:00:34.7]} 35... Nf6 {[%clk 0:01:50.4]} 36. Be1 {[%clk 0:00:36]}
36... Nh5+ {[%clk 0:01:50.3]} 37. Kf2 {[%clk 0:00:37.5]} 37... Nxf4 {[%clk
0:01:51.2]} 38. Bb4 {[%clk 0:00:38.6]} 38... h5 {[%clk 0:01:51.8]} 39. Bd6
{[%clk 0:00:37.4]} 39... Nd3+ {[%clk 0:01:52]} 40. Ke2 {[%clk 0:00:37.6]} 40...
Nxb2 {[%clk 0:01:52.8]} 41. Bb8 {[%clk 0:00:38.4]} 41... a6 {[%clk 0:01:53.2]}
42. a3 {[%clk 0:00:31.5]} 42... Nc4 {[%clk 0:01:52.7]} 43. a4 {[%clk 0:00:32.6]}
43... b5 {[%clk 0:01:53.9]} 44. axb5 {[%clk 0:00:33.7]} 44... axb5 {[%clk
0:01:55.8]} 0-1

[Event "*** MasterClass Titled Tuesday Blitz"]
[Site "Chess.com"]
[Date "2017.09.05"]
[Round "9"]
[White "abubakrtagelsir"]
[Black "kikydu96"]
[Result "1-0"]
[WhiteElo "2244"]
[BlackElo "2320"]
[TimeControl "180+2"]
[EndTime "15:10:18 PDT"]
[Termination "abubakrtagelsir won by resignation"]

1. e4 {[%clk 0:03:01.9]} 1... c5 {[%clk 0:02:58.1]} 2. Nc3 {[%clk 0:02:59.9]}
2... a6 {[%clk 0:02:56.4]} 3. f4 {[%clk 0:03:00.3]} 3... b5 {[%clk 0:02:56.8]}
4. Nf3 {[%clk 0:03:00.8]} 4... Bb7 {[%clk 0:02:57.2]} 5. d3 {[%clk 0:03:01.6]}
5... e6 {[%clk 0:02:57.9]} 6. g3 {[%clk 0:03:02.5]} 6... b4 {[%clk 0:02:54]} 7.
Nb1 {[%clk 0:03:01.5]} 7... d5 {[%clk 0:02:55.3]} 8. Bg2 {[%clk 0:02:49.5]} 8...
dxe4 {[%clk 0:02:54.5]} 9. Ng5 {[%clk 0:02:50.4]} 9... Nf6 {[%clk 0:02:47.7]}
10. O-O {[%clk 0:02:48.5]} 10... Nbd7 {[%clk 0:02:30.3]} 11. Nd2 {[%clk
0:02:37.9]} 11... Qb6 {[%clk 0:02:19.6]} 12. Nc4 {[%clk 0:02:37.8]} 12... Qc7
{[%clk 0:02:17.5]} 13. Nxe4 {[%clk 0:02:30.8]} 13... Nxe4 {[%clk 0:02:15.8]} 14.
dxe4 {[%clk 0:02:31.8]} 14... Be7 {[%clk 0:02:14.7]} 15. Re1 {[%clk 0:02:31.8]}
15... O-O {[%clk 0:02:09]} 16. Qh5 {[%clk 0:02:06.9]} 16... Rad8 {[%clk
0:01:49]} 17. f5 {[%clk 0:01:45.8]} 17... Nf6 {[%clk 0:01:43.2]} 18. Qe2 {[%clk
0:01:34.6]} 18... exf5 {[%clk 0:01:20.9]} 19. Bf4 {[%clk 0:01:28.1]} 19... Qc8
{[%clk 0:01:04.2]} 20. exf5 {[%clk 0:00:57]} 20... Bxg2 {[%clk 0:00:57.6]} 21.
Qxg2 {[%clk 0:00:50.4]} 21... Rfe8 {[%clk 0:00:57.3]} 22. g4 {[%clk 0:00:41.7]}
22... h5 {[%clk 0:00:57]} 23. Nb6 {[%clk 0:00:35.8]} 1-0

[Event "*** MasterClass Titled Tuesday Blitz"]
[Site "Chess.com"]
[Date "2017.09.05"]
[Round "9"]
[White "biostatistician"]
[Black "Yaacovn"]
[Result "1-0"]
[WhiteElo "2446"]
[BlackElo "2608"]
[TimeControl "180+2"]
[EndTime "15:10:34 PDT"]
[Termination "biostatistician won by resignation"]

1. d4 {[%clk 0:03:01.9]} 1... Nf6 {[%clk 0:03:00.9]} 2. Nf3 {[%clk 0:03:03.5]}
2... e6 {[%clk 0:02:38.7]} 3. c4 {[%clk 0:03:04.5]} 3... Bb4+ {[%clk 0:02:39.1]}
4. Nbd2 {[%clk 0:03:05.4]} 4... d5 {[%clk 0:02:39.9]} 5. a3 {[%clk 0:03:07.3]}
5... Be7 {[%clk 0:02:40.2]} 6. Qc2 {[%clk 0:03:07.1]} 6... c5 {[%clk 0:02:41.2]}
7. cxd5 {[%clk 0:03:02.6]} 7... cxd4 {[%clk 0:02:36]} 8. Nxd4 {[%clk 0:03:02.9]}
8... Nxd5 {[%clk 0:02:34.1]} 9. e4 {[%clk 0:02:57.6]} 9... Nb6 {[%clk 0:02:33]}
10. Bb5+ {[%clk 0:02:55.4]} 10... Bd7 {[%clk 0:02:33.3]} 11. O-O {[%clk
0:02:54.1]} 11... O-O {[%clk 0:02:33.2]} 12. N2f3 {[%clk 0:02:50.5]} 12... Bxb5
{[%clk 0:02:33]} 13. Nxb5 {[%clk 0:02:52.4]} 13... Nc6 {[%clk 0:02:33.6]} 14.
Rd1 {[%clk 0:02:52.9]} 14... Qc8 {[%clk 0:02:32.1]} 15. Bf4 {[%clk 0:02:47.3]}
15... Ne5 {[%clk 0:02:30.2]} 16. Rac1 {[%clk 0:02:39]} 16... Qxc2 {[%clk
0:02:28]} 17. Rxc2 {[%clk 0:02:40.9]} 17... Nxf3+ {[%clk 0:02:28.6]} 18. gxf3
{[%clk 0:02:42.8]} 18... a6 {[%clk 0:02:23.3]} 19. Nd6 {[%clk 0:02:00.5]} 19...
Rfd8 {[%clk 0:01:51.7]} 20. Rc7 {[%clk 0:01:57.4]} 20... Nc8 {[%clk 0:01:48.3]}
21. e5 {[%clk 0:01:48.9]} 21... b5 {[%clk 0:01:43.8]} 22. Rd2 {[%clk 0:01:41]}
22... Bxd6 {[%clk 0:01:39.9]} 23. exd6 {[%clk 0:01:41.2]} 23... Nb6 {[%clk
0:01:40.3]} 24. d7 {[%clk 0:01:15.6]} 24... Nd5 {[%clk 0:01:34.7]} 25. Rxd5
{[%clk 0:01:16.2]} 25... exd5 {[%clk 0:01:35.4]} 26. Bd6 {[%clk 0:01:17.8]}
26... f6 {[%clk 0:01:32.3]} 27. Be7 {[%clk 0:01:17.4]} 27... Kf7 {[%clk
0:01:32.2]} 28. Bxd8 {[%clk 0:01:18.7]} 28... Rxd8 {[%clk 0:01:33.1]} 29. Kf1
{[%clk 0:01:16.6]} 29... Ke6 {[%clk 0:01:32.9]} 30. Ra7 {[%clk 0:01:17.4]} 30...
Rxd7 {[%clk 0:01:30.7]} 31. Rxa6+ {[%clk 0:01:18.3]} 31... Ke5 {[%clk
0:01:24.4]} 32. Rb6 {[%clk 0:01:16.4]} 32... Kf4 {[%clk 0:01:25]} 33. Rxb5
{[%clk 0:01:13.3]} 33... Kxf3 {[%clk 0:01:24.8]} 34. Rb3+ {[%clk 0:01:12.6]}
34... Ke4 {[%clk 0:01:25.2]} 35. Ke2 {[%clk 0:01:13.4]} 35... d4 {[%clk
0:01:25.4]} 36. f3+ {[%clk 0:01:12.5]} 36... Kf4 {[%clk 0:01:24.8]} 37. Rb4
{[%clk 0:01:11]} 37... g5 {[%clk 0:01:21.2]} 38. a4 {[%clk 0:01:11.2]} 38... f5
{[%clk 0:01:09.6]} 39. a5 {[%clk 0:01:11.7]} 39... g4 {[%clk 0:01:05.2]} 40.
fxg4 {[%clk 0:01:12.7]} 40... fxg4 {[%clk 0:01:05.5]} 41. a6 {[%clk 0:01:14.2]}
41... Ke4 {[%clk 0:01:03.3]} 42. Ra4 {[%clk 0:01:13.3]} 42... h5 {[%clk
0:01:00.9]} 43. a7 {[%clk 0:01:12.7]} 1-0